fUSD/lending_fUSD_20240222
["ID","MTS","AMOUNT","RATE_DAILY","PERIOD"]
[314808521,1708560008800,890.16160362,0.00022026,2]
[314808522,1708560028797,890.16160362,0.00022026,2]
[314808523,1708560050801,890.16160362,0.00022026,2]
[314808524,1708560072818,890.16160362,0.00022026,2]
[314808525,1708560094801,603.19207299,0.00022026,2]
[314808526,1708560124862,204.0,0.00026513,5]
[314808527,1708560370630,-158.17269467,0.00023099,2]
[314808528,1708560370653,-635.0,0.00023129,2]
[314808529,1708560370676,-3528.71555282,0.0002313,2]
[314808530,1708560370699,-150.0,0.00023199,2]
[314808531,1708560370722,-6917.45174519,0.000232,2]
[314808532,1708560370745,-300.0,0.00023388,2]
[314808533,1708560370769,-204.0,0.00024121,2]
[314808534,1708560370793,-839.94,0.00024136,2]
[314808535,1708560370819,-750.0,0.00025,3]
[314808536,1708560370842,-851.60002908,0.00025,2]
[314808537,1708560370865,-254.16,0.00026053,2]
[314808538,1708560370888,-200.0,0.00026097,2]
[314808539,1708560370911,-150.0,0.00026313,2]
[314808540,1708560370934,-23900.0,0.00026314,2]
[314808541,1708560370956,-500.0,0.00026329,2]
[314808542,1708560370979,-839.94,0.00026399,2]
[314808543,1708560371003,-500.0,0.00026452,2]
[314808544,1708560371026,-250.0,0.00026609,2]
[314808545,1708560371055,-2198.38,0.00026699,2]
[314808546,1708560371078,-250.0,0.0002696,2]
[314808547,1708560371101,-1538.96,0.0002696,2]
[314808548,1708560371123,-2000.0,0.00026993,2]
[314808549,1708560371146,-800.0,0.00027,3]
[314808550,1708560371168,-167.14,0.00027157,2]
[314808551,1708560371192,-815.89761667,0.00027201,3]
[314808552,1708560371214,-21597.8665,0.00027201,2]
[314808553,1708560371239,-499.99,0.00027301,2]
[314808554,1708560371262,-155.0,0.00027397,2]
[314808555,1708560371286,-4655.94327897,0.00027461,2]
[314808556,1708560371311,-257.00962992,0.00027461,2]
[314808557,1708560371334,-354.09813841,0.00027461,2]
[314808558,1708560371357,-500.0,0.00027461,2]
[314808559,1708560371380,-1691.0472,0.00027461,2]
[314808560,1708560371402,-469.6739,0.00027461,2]
[314808561,1708560371425,-257.00962991,0.0002751,2]
[314808562,1708560371447,-164.88,0.00027532,2]
[314808563,1708560371470,-257.00962991,0.00027559,2]
[314808564,1708560371492,-155.0,0.0002756,2]
[314808565,1708560371514,-172.65979484,0.00027561,2]
[314808566,1708560371536,-2091.6287,0.00027561,2]
[314808567,1708560371560,-18021.82595961,0.00027561,2]
[314808568,1708560371898,-100000.0,0.00027561,2]
[314808569,1708560372099,-100000.0,0.00027561,2]
[314808570,1708560372579,-26978.17404039,0.00027561,2]
[314808571,1708560372602,-73021.82595961,0.00027561,2]
[314808572,1708560373098,-10760.31314039,0.00027561,2]
[314808573,1708560373122,-354.09813838,0.00027656,2]
[314808574,1708560373146,-155.0,0.00027659,2]
[314808575,1708560373171,-254.16,0.00027697,2]
[314808576,1708560373195,-300.0,0.00027736,2]
[314808577,1708560373518,-354.09813838,0.00027851,2]
[314808578,1708560373542,-450.0003062,0.000279,2]
[314808579,1708560373566,-158.17269464,0.0002799,2]
[314808580,1708560373589,-87214.15758201,0.00028,2]
[314808581,1708560373769,-100000.0,0.00028,2]
[314808582,1708560376823,-50733.38729882,0.00028,2]
[314808583,1708560376846,-197.0335896,0.00028,2]
[314808584,1708560376868,-354.09813838,0.00028046,2]
[314808585,1708560376892,-354.09813838,0.00028241,2]
[314808586,1708560376916,-10661.0,0.0002842,2]
[314808587,1708560376940,-4655.94327888,0.00028467,2]
[314808588,1708560376965,-839.94,0.00028663,2]
[314808589,1708560376989,-815.89761663,0.00028819,4]
[314808590,1708560377012,-204.0,0.00028905,9]
[314808591,1708560377035,-850.0,0.00029,3]
[314808592,1708560377060,-300.0,0.00029106,2]
[314808593,1708560377083,-1000.0,0.00029255,2]
[314808594,1708560377106,-254.16,0.00029341,2]
[314808595,1708560377130,-4655.94327888,0.00029474,2]
[314808596,1708560377154,-180.97,0.00029798,2]
[314808597,1708560377177,-430.51140173,0.0003,2]
[314808598,1708560449053,-635.917789,0.0002746,2]
[314808599,1708560449076,-99364.082211,0.00027461,2]
[314808600,1708560450103,-851.60002908,0.00027459,3]
[314808601,1708560450129,-99148.39997092,0.00027461,2]
[314808611,1708560631653,-538.78807841,0.00027361,2]
[314808612,1708560631663,-11662.70817605,0.00027461,2]
[314808613,1708560631704,-322.16141251,0.00027461,2]
[314808614,1708560631716,-13319.51743803,0.00027461,2]
[314808615,1708560631727,-667.61891395,0.00027461,2]
[314808616,1708560631763,-598.64497546,0.00027461,2]
[314808617,1708560631776,-1634.71231662,0.00027461,2]
[314808618,1708560631787,-604.7260143,0.00027461,2]
[314808619,1708560631800,-9396.69471139,0.00027461,2]
[314808620,1708560631824,-937.47454614,0.00027461,2]
[314808621,1708560631837,-1314.39513694,0.00027461,2]
[314808622,1708560631854,-6028.86417669,0.00027461,2]
[314808623,1708560631864,-500.0,0.00027461,2]
[314808624,1708560631873,-430.51140173,0.0003,2]
[314808625,1708560631882,-205.0,0.00030297,2]
[314808626,1708560631891,-4655.94327888,0.0003048,2]
[314808627,1708560631900,-1332.68897571,0.00030504,28]
[314808628,1708560631910,-180.97,0.00030791,2]
[314808629,1708560631919,-250.0,0.00030843,2]
[314808630,1708560631928,-2933.0,0.000309,2]
[314808631,1708560631938,-10113.79801318,0.000309,2]
[314808632,1708560631958,-4964.79444649,0.000309,2]
[314808633,1708560631969,-5184.9016,0.000309,2]
[314808634,1708560632004,-10292.50594033,0.000309,2]
[314808636,1708560632013,-499.99,0.000309,2]
[314808638,1708560632023,-546.17448103,0.00030927,2]
[314808640,1708560632037,-293.76551897,0.00030927,2]
[314808642,1708560632046,-254.16,0.00030985,2]
[314808644,1708560632055,-900.0,0.00031,3]
[314808646,1708560632065,-150.1,0.00031,5]
[314808648,1708560632074,-256.0,0.00031,2]
[314808650,1708560632083,-2006.1,0.00031018,2]
[314808652,1708560632092,-2000.0,0.00031024,2]
[314808654,1708560632102,-250.0,0.00031055,2]
[314808655,1708560632112,-562.84,0.0003122,10]
[314808657,1708560632121,-469.04,0.0003122,10]
[314808659,1708560632131,-390.86,0.0003122,10]
[314808661,1708560632140,-28323.07309163,0.0003123,2]
[314808677,1708560637706,-851.60002908,0.0002736,2]
[314808678,1708560637715,-9878.66690837,0.0003123,2]
[314808679,1708560637725,-1000.0,0.0003123,2]
[314808680,1708560637735,-100000.0,0.0003123,2]
[314808681,1708560637749,-4655.94327888,0.00031486,3]
[314808682,1708560637758,-167.14,0.0003164,2]
[314808683,1708560637768,-180.97,0.00031784,2]
[314808684,1708560637777,-19073.14648909,0.000319,4]
[314808685,1708560637788,-519.3513075,0.00032,33]
[314808686,1708560637797,-1000.0,0.00032,4]
[314808687,1708560637806,-4655.94327888,0.00032492,4]
[314808688,1708560637815,-254.16,0.00032629,2]
[314808689,1708560637824,-205.0,0.00032772,6]
[314808690,1708560637835,-180.97,0.00032778,2]
[314808691,1708560637844,-158.17269464,0.00032882,2]
[314808692,1708560637852,-1000.0,0.000329,2]
[314808693,1708560637861,-600.0,0.00033,34]
[314808694,1708560637871,-106.57047909,0.00033,3]
[314808695,1708560637882,-843.42952091,0.00033,3]
[314808696,1708560637892,-164.88,0.00033039,2]
[314808697,1708560637901,-839.94,0.00033191,2]
[314808698,1708560637910,-4655.94327888,0.00033499,5]
[314808710,1708560638170,-1000.0,0.00033747,2]
[314808712,1708560638180,-155.31,0.00033883,2]
[314808713,1708560638189,-600.0,0.00034,35]
[314808714,1708560638199,-254.16,0.00034273,2]
[314808715,1708560638208,-167.0,0.00034345,2]
[314808716,1708560638217,-4655.94327888,0.00034505,6]
[314808717,1708560638226,-2556.626948,0.0003452,2]
[314808718,1708560638235,-590.82,0.00034521,2]
[314808719,1708560638245,-10000.0,0.00034612,2]
[314808720,1708560638258,-3834.940422,0.00034794,2]
[314808721,1708560638268,-150.06213895,0.000348,2]
[314808722,1708560638277,-158.0,0.000349,5]
[314808723,1708560638287,-7791.73425749,0.000349,120]
[314808724,1708560638357,-7323.4206875,0.000349,120]
[314808725,1708560638368,-2768.89221599,0.000349,2]
[314808726,1708560638378,-2768.89221599,0.000349,2]
[314808727,1708560638387,-1948.64731708,0.00034921,6]
[314808728,1708560638398,-5113.253896,0.00034931,2]
[314808729,1708560638408,-3923.5119082,0.0003499,6]
[314808730,1708560638463,-918.00154469,0.0003499,6]
[314808731,1708560638478,-2953.07581543,0.0003499,6]
[314808732,1708560638487,-701.27683173,0.00035,4]
[314808733,1708560638496,-6176.75801591,0.00035,2]
[314808734,1708560638508,-3780.30740799,0.00035,2]
[314808735,1708560638519,-1256.50176955,0.00035,2]
[314808736,1708560638551,-6336.77507241,0.00035,2]
[314808737,1708560638562,-1000.0,0.00035,3]
[314808738,1708560638571,-150.1,0.00035,3]
[314808739,1708560638580,-600.0,0.00035,36]
[314808740,1708560638590,-2768.89221599,0.00035058,2]
[314808741,1708560638599,-1948.64731708,0.00035058,6]
[314808742,1708560638608,-6391.56737,0.00035068,2]
[314808743,1708560638618,-150.06213895,0.00035138,2]
[314808744,1708560638627,-27281.0624391,0.00035151,6]
[314808745,1708560638636,-1231.0,0.00035161,2]
[314808746,1708560638646,-342.11,0.00035161,2]
[314808747,1708560638656,-1256.0,0.00035161,2]
[314808748,1708560638665,-216.0,0.00035161,2]
[314808749,1708560638674,-858.0,0.00035161,2]
[314808750,1708560638683,-1006.0,0.00035161,2]
[314808751,1708560638693,-429.0,0.00035161,2]
[314808752,1708560638702,-322.0,0.00035161,2]
[314808753,1708560638711,-1129.0,0.00035161,2]
[314808754,1708560638721,-337.0,0.00035161,2]
[314808755,1708560638730,-2889.0,0.00035161,2]
[314808756,1708560638739,-302.0,0.00035161,2]
[314808757,1708560638748,-454.0,0.00035161,2]
[314808758,1708560638758,-205.0,0.00035247,11]
[314808759,1708560638767,-3897.29463416,0.00035332,7]
[314808760,1708560638776,-8948.194318,0.00035342,2]
[314808761,1708560638786,-839.94,0.00035455,2]
[314808762,1708560638795,-150.06213895,0.00035476,2]
[314808763,1708560638804,-167.0,0.00035479,2]
[314808764,1708560638813,-1948.64731708,0.00035501,7]
[314808765,1708560638822,-4655.94327888,0.00035511,8]
[314808766,1708560638831,-1157.9713507,0.000357,2]
[314808767,1708560638841,-1948.64731708,0.00035746,7]
[314808768,1708560638850,-10000.0,0.00035756,3]
[314808769,1708560638860,-1948.64731708,0.00035788,7]
[314808770,1708560638869,-590.82,0.00035798,2]
[314808771,1708560638879,-150.06213895,0.00035813,2]
[314808772,1708560638888,-8177.0,0.00035958,2]
[314808773,1708560638898,-2293.0,0.00035958,2]
[314808774,1708560638907,-2932.0,0.00035958,2]
[314808775,1708560638916,-7429.0,0.00035958,2]
[314808776,1708560638925,-42646.0,0.00035958,2]
[314808777,1708560638935,-19879.0,0.00035958,2]
[314808778,1708560638944,-1039.0,0.00035958,2]
[314808779,1708560638953,-2172.99006958,0.00036,4]
[314808780,1708560638963,-600.0,0.00036,37]
[314808781,1708560638973,-154.0,0.00036116,7]
[314808782,1708560638982,-150.06213895,0.00036151,2]
[314808783,1708560638991,-150.1,0.000362,2]
[314808784,1708560639000,-1948.64731708,0.00036319,8]
[314808785,1708560639009,-2174.0,0.00036329,2]
[314808786,1708560639018,-11691.8839025,0.00036379,8]
[314808787,1708560639027,-150.06213895,0.00036489,2]
[314808788,1708560639037,-6000.0,0.0003649,2]
[314808789,1708560639046,-4655.94327888,0.00036517,9]
[314808790,1708560639055,-167.0,0.00036613,2]
[314808791,1708560639063,-2768.89221599,0.00036637,2]
[314808792,1708560639072,-154.0,0.00036664,7]
[314808793,1708560639081,-211.67526088,0.00036698,2]
[314808794,1708560639090,-152.0,0.00036757,3]
[314808795,1708560639100,-1396.58841713,0.00036798,2]
[314808796,1708560639109,-1396.58841711,0.00036798,2]
[314808797,1708560639118,-1396.58841711,0.00036798,2]
[314808798,1708560639127,-1396.58841711,0.00036798,2]
[314808799,1708560639136,-1396.58841711,0.00036798,2]
[314808800,1708560639145,-1396.58841711,0.00036798,2]
[314808801,1708560639154,-1396.58841711,0.00036798,2]
[314808802,1708560639163,-150.06213895,0.00036827,2]
[314808803,1708560639173,-247.1187959,0.000369,2]
[314808804,1708560639183,-10226.507792,0.00036986,2]
[314808805,1708560639192,-600.0,0.00037,38]
[314808806,1708560639202,-1673.16128251,0.00037,4]
[314808807,1708560639211,-1050.0,0.00037,3]
[314808808,1708560639220,-7454.0,0.00037051,2]
[314808809,1708560639229,-169.33,0.00037055,2]
[314808810,1708560639238,-151.0,0.00037066,120]
[314808811,1708560639247,-1079.74,0.00037067,2]
[314808812,1708560639256,-3089.02,0.00037067,2]
[314808813,1708560639265,-16985.92,0.00037067,2]
[314808814,1708560639274,-1872.5,0.00037067,2]
[314808815,1708560639283,-19999.99,0.00037067,2]
[314808816,1708560639293,-590.82,0.00037075,2]
[314808817,1708560639303,-150.0,0.00037114,2]
[314808818,1708560639312,-163.022208,0.00037118,27]
[314808819,1708560639325,-150.06213895,0.00037164,2]
[314808820,1708560639334,-150.0,0.00037211,2]
[314808821,1708560639343,-154.0,0.00037212,7]
[314808822,1708560639352,-150.0,0.00037217,2]
[314808823,1708560639361,-173.022208,0.00037218,28]
[314808824,1708560639370,-150.0,0.00037223,2]
[314808825,1708560639379,-173.022208,0.00037318,26]
[314808826,1708560639389,-1500.0,0.00037342,2]
[314808827,1708560639399,-150.0,0.00037377,2]
[314808828,1708560639410,-1396.58841711,0.00037386,2]
[314808829,1708560639419,-167.98,0.00037397,2]
[314808830,1708560639429,-173.022208,0.00037418,27]
[314808831,1708560639438,-1000.0,0.000375,2]
[314808832,1708560639449,-16682.43438022,0.000375,3]
[314808833,1708560639458,-150.06213895,0.00037502,2]
[314808834,1708560639468,-173.022208,0.00037518,28]
[314808835,1708560639479,-4655.94327888,0.00037524,10]
[314808836,1708560639489,-65164.20530267,0.00037575,5]
[314808837,1708560639498,-51028.58053961,0.00037606,5]
[314808838,1708560639509,-173.022208,0.00037618,32]
[314808839,1708560639518,-65164.20530267,0.00037632,5]
[314808840,1708560639527,-384.18811465,0.00037648,5]
[314808841,1708560639536,-165.2008893,0.00037663,5]
[314808842,1708560639545,-180.0,0.00037671,2]
[314808843,1708560639554,-1825.8185341,0.00037685,5]
[314808844,1708560639563,-200000.0,0.0003769,15]
[314808845,1708560639572,-173.022208,0.00037718,33]
[314808846,1708560639581,-839.94,0.00037719,2]
[314808847,1708560639591,-205.0,0.00037723,16]
[314808848,1708560639600,-384.18811465,0.00037738,5]
[314808849,1708560639609,-1825.8185341,0.00037739,5]
[314808850,1708560639618,-167.0,0.00037747,2]
[314808851,1708560639627,-5000.0,0.00037754,3]
[314808852,1708560639637,-165.2008893,0.00037758,5]
[314808853,1708560639646,-154.0,0.0003776,7]
[314808854,1708560639656,-150.0,0.00037764,2]
[314808855,1708560639666,-51028.58053961,0.00037771,5]
[314808856,1708560639675,-158.17269464,0.00037773,2]
[314808857,1708560639685,-2000.0,0.000378,2]
[314808858,1708560639695,-55555.0,0.000378,3]
[314808859,1708560639705,-173.022208,0.00037818,34]
[314808860,1708560639714,-10000.0,0.00037822,3]
[314808861,1708560639723,-151.0,0.00037822,30]
[314808862,1708560639732,-13835.98252699,0.00037838,2]
[314808863,1708560639742,-150.06213895,0.0003784,2]
[314808864,1708560639751,-151.022208,0.00037848,27]
[314808865,1708560639760,-148358.56064907,0.00037854,15]
[314808866,1708560639774,-51641.43935093,0.00037854,15]
[314808867,1708560639784,-201400.06712583,0.000379,3]
[314808868,1708560639796,-748.774176,0.000379,3]
[314808869,1708560639807,-741.27723955,0.000379,3]
[314808870,1708560639819,-420.8888349,0.000379,3]
[314808871,1708560639830,-313.89851893,0.000379,3]
[314808872,1708560639842,-743.63429999,0.000379,3]
[314808873,1708560639937,-1108.77575039,0.000379,3]
[314808874,1708560639964,-51838.02006601,0.000379,3]
[314808875,1708560639976,-29743.1525839,0.000379,3]
[314808876,1708560639986,-4042.566642,0.000379,3]
[314808877,1708560639998,-7442.804616,0.000379,3]
[314808878,1708560641175,-150.0,0.00035146,2]
[314808879,1708560641184,-826.12938523,0.000379,3]
[314808883,1708560642777,-4450.24425195,0.000379,3]
[314808884,1708560642889,-5994.61797879,0.000379,3]
[314809076,1708560645816,-11525.61199952,0.000379,3]
[314809118,1708561831887,-187.75,0.00023391,2]
[314809119,1708561831898,-543.8,0.00025,3]
[314809120,1708561832079,-206.2,0.00025,3]
[314809121,1708561832089,-343.8,0.00025,2]
[314809122,1708561832102,-507.80002908,0.00025,2]
[314809123,1708561832111,-800.0,0.00027,3]
[314809124,1708561832121,-205.0,0.00027297,2]
[314809125,1708561832131,-204.0,0.00027297,2]
[314809126,1708561832141,-204.0,0.00027297,2]
[314809127,1708561832150,-114.71498281,0.00027297,2]
[314809133,1708561832345,-89.28501719,0.00027297,2]
[314809135,1708561832355,-901.8341,0.00027361,2]
[314809137,1708561832365,-850.0,0.00029,3]
[314809139,1708561832375,-935.4,0.00029009,2]
[314809141,1708561832385,-830.08095024,0.00029239,2]
[314809143,1708561832398,-23069.91904976,0.00029239,2]
[314809145,1708561832407,-200.0,0.00029326,2]
[314809147,1708561832417,-300.0,0.00029337,2]
[314809149,1708561832426,-150.0,0.00029337,2]
[314809152,1708561832436,-150.0,0.00029337,2]
[314809154,1708561832445,-895.37,0.00029338,2]
[314809156,1708561832455,-292.67,0.00029338,2]
[314809158,1708561832465,-205.0,0.00029477,5]
[314809160,1708561832473,-2705.0,0.0002948,2]
[314809162,1708561832483,-196.46,0.00029485,2]
[314809164,1708561832492,-438.36023118,0.000295,3]
[314809166,1708561832502,-1521.07,0.00029623,2]
[314809168,1708561832511,-4328.89,0.00029703,2]
[314809170,1708561832520,-169.91,0.00029782,2]
[314809172,1708561832530,-200.0,0.00029943,2]
[314809174,1708561832540,-909.61264094,0.00030057,2]
[314809176,1708561832549,-499.99,0.00030058,2]
[314809178,1708561832560,-800.0,0.00030059,2]
[314809180,1708561832570,-207.4733,0.00030099,2]
[314809182,1708561832579,-878.1977,0.00030099,2]
[314809184,1708561832589,-5916.9313,0.00030099,2]
[314809186,1708561832599,-157.62440158,0.000301,2]
[314809188,1708561832608,-150.0,0.00030155,2]
[314809190,1708561832618,-178.31703478,0.00030198,4]
[314809192,1708561832628,-6793.03174298,0.00030199,4]
[314809195,1708561832640,-59099.99999986,0.00030199,4]
[314809197,1708561832651,-39101.12305995,0.00030199,4]
[314809199,1708561832661,-28363.0,0.000302,2]
[314809201,1708561832671,-2943.0,0.000302,2]
[314809203,1708561832683,-2849.4,0.00030249,2]
[314809205,1708561832693,-178.55,0.00030474,2]
[314809207,1708561832703,-165.75,0.00030562,2]
[314809209,1708561832714,-343.8,0.00030666,2]
[314809212,1708561832724,-168.66,0.00030676,2]
[314809214,1708561832733,-250.0,0.00030783,2]
[314809216,1708561832743,-900.0,0.00031,3]
[314809218,1708561832754,-196.46,0.00031021,2]
[314809220,1708561832764,-2454.1162,0.0003103,2]
[314809222,1708561832774,-14083.6962,0.0003103,7]
[314809224,1708561832783,-150.0,0.00031098,2]
[314809226,1708561832793,-3738.4783,0.0003113,2]
[314809228,1708561832803,-7513.96624003,0.0003113,2]
[314809232,1708561832832,-1403.57398397,0.0003113,2]
[314809234,1708561832849,-346.61496509,0.0003113,2]
[314809254,1708561837984,-12951.62334002,0.0003113,2]
[314809255,1708561837996,-6026.76487506,0.0003113,2]
[314809256,1708561838008,-71757.45659583,0.0003113,2]
[314809257,1708561838017,-1000.0,0.0003113,2]
[314809258,1708561838027,-245000.0,0.0003113,2]
[314809259,1708561838036,-2000.0,0.00031147,2]
[314809260,1708561838046,-250.0,0.00031147,2]
[314809261,1708561838055,-935.4,0.00031272,2]
[314809262,1708561838065,-153.16,0.00031478,2]
[314809263,1708561838074,-750.0,0.00031593,2]
[314809264,1708561838083,-205.0,0.00031657,9]
[314809266,1708561838096,-95918.8944073,0.000318,2]
[314809268,1708561838105,-12511.1601401,0.00031885,2]
[314809269,1708561838114,-19248.33299721,0.000319,4]
[314809270,1708561838124,-171.0,0.00032281,2]
[314809271,1708561838134,-343.8,0.0003231,2]
[314809272,1708561838143,-171.0,0.00032829,2]
[314809274,1708561838152,-55699.87,0.00032877,2]
[314809276,1708561838162,-950.0,0.00033,3]
[314809278,1708561838171,-171.0,0.00033377,2]
[314809280,1708561838180,-157.62440156,0.000335,2]
[314809281,1708561838190,-935.4,0.00033536,2]
[314809282,1708561838199,-167.0,0.00033704,2]
[314809283,1708561838208,-4170.38671336,0.00033806,4]
[314809284,1708561838218,-800.0,0.00033816,2]
[314809285,1708561838227,-205.0,0.00033838,13]
[314809286,1708561838237,-155.26,0.00033861,2]
[314809287,1708561838246,-171.0,0.00033925,2]
[314809288,1708561838255,-343.8,0.00033954,2]
[314809289,1708561838265,-430.51140173,0.0003411,2]
[314809290,1708561838275,-181.46,0.00034249,2]
[314809291,1708561838284,-2284.18,0.00034256,2]
[314809292,1708561838293,-171.0,0.00034473,2]
[314809293,1708561838302,-33363.0937069,0.0003451,5]
[314809294,1708561838315,-4170.38671336,0.00034511,5]
[314809295,1708561838324,-1157.605862,0.0003452,2]
[314809296,1708561838334,-6107.865309,0.0003452,2]
[314809297,1708561838343,-58141.827491,0.0003452,2]
[314809298,1708561838351,-2520.280213,0.0003452,2]
[314809299,1708561838361,-3509.19,0.00034521,2]
[314809300,1708561838370,-2174.0,0.0003475,2]
[314809301,1708561838379,-37533.4804202,0.00034784,6]
[314809302,1708561838388,-1736.408793,0.00034794,2]
[314809303,1708561838397,-9161.797964,0.00034794,2]
[314809304,1708561838405,-87212.741237,0.00034794,2]
[314809305,1708561838414,-3780.42032,0.00034794,2]
[314809306,1708561838424,-4154.1326145,0.000349,2]
[314809307,1708561838433,-4154.13261437,0.000349,2]
[314809308,1708561838443,-4154.13261437,0.000349,2]
[314809309,1708561838452,-2315.211724,0.00034931,2]
[314809310,1708561838462,-12215.730618,0.00034931,2]
[314809311,1708561838473,-116283.654983,0.00034931,2]
[314809312,1708561838484,-5040.560427,0.00034931,2]
[314809313,1708561838494,-155.0,0.00035,4]
[314809314,1708561838504,-50489.79149377,0.00035,4]
[314809315,1708561838529,-198492.70290859,0.00035,4]
[314809316,1708561838540,-1000.0,0.00035,3]
[314809317,1708561838549,-171.0,0.00035021,2]
[314809318,1708561838561,-2894.014655,0.00035068,2]
[314809319,1708561838572,-15269.663273,0.00035068,2]
[314809320,1708561838582,-145354.568729,0.00035068,2]
[314809321,1708561838592,-6300.700534,0.00035068,2]
[314809322,1708561838603,-4051.620517,0.00035342,2]
[314809323,1708561838613,-21377.528582,0.00035342,2]
[314809324,1708561838623,-203496.396221,0.00035342,2]
[314809325,1708561838632,-8820.980747,0.00035342,2]
[314809326,1708561838642,-19999.99,0.00035455,2]
[314809327,1708561838651,-1872.5,0.00035455,2]
[314809328,1708561838661,-3089.02,0.00035455,2]
[314809329,1708561838671,-16985.92,0.00035455,2]
[314809330,1708561838683,-1079.74,0.00035455,2]
[314809331,1708561838693,-153.28,0.00035499,2]
[314809332,1708561838702,-167.0,0.00035558,2]
[314809333,1708561838711,-171.0,0.00035568,2]
[314809334,1708561838722,-343.8,0.00035598,2]
[314809335,1708561838731,-692.7,0.00035616,4]
[314809336,1708561838741,-876.72,0.00035616,10]
[314809337,1708561838750,-153.28,0.00035721,2]
[314809338,1708561838759,-151.0,0.00035759,120]
[314809339,1708561838769,-4154.13261437,0.00035784,2]
[314809340,1708561838778,-3509.19,0.00035798,2]
[314809341,1708561838788,-935.4,0.000358,2]
[314809342,1708561838797,-153.28,0.00035943,2]
[314809343,1708561838806,-2172.99006958,0.00036,4]
[314809344,1708561838816,-155.0,0.00036,2]
[314809345,1708561838825,-177.63,0.00036,2]
[314809346,1708561838834,-600.0,0.00036,37]
[314809347,1708561838844,-205.0,0.00036018,17]
[314809348,1708561838853,-171.0,0.00036116,7]
[314809349,1708561838862,-153.28,0.00036165,2]
[314809350,1708561838872,-200.0,0.00036265,2]
[314809351,1708561838881,-150.0,0.00036273,2]
[314809352,1708561838890,-150.0,0.00036278,2]
[314809353,1708561838900,-199.75335707,0.00036289,2]
[314809354,1708561838909,-150.06213895,0.00036289,2]
[314809355,1708561838918,-1265.98302602,0.00036289,2]
[314809356,1708561838928,-150.0,0.00036341,2]
[314809357,1708561838938,-153.28,0.00036387,2]
[314809358,1708561838947,-35585.37781456,0.00036389,2]
[314809359,1708561838956,-150.0,0.00036476,2]
[314809360,1708561838965,-151.0,0.00036489,30]
[314809361,1708561838975,-150.0,0.00036491,2]
[314809362,1708561838984,-150.0,0.00036541,2]
[314809363,1708561838994,-177.63,0.00036548,2]
[314809364,1708561839003,-150.06213895,0.0003655,2]
[314809365,1708561839012,-150.0,0.00036585,2]
[314809366,1708561839022,-150.0,0.00036601,2]
[314809367,1708561839031,-153.28,0.00036608,2]
[314809368,1708561839040,-150.0,0.00036636,2]
[314809369,1708561839051,-171.0,0.00036664,7]
[314809370,1708561839061,-150.0,0.00036665,2]
[314809371,1708561839073,-150.0,0.0003668,2]
[314809372,1708561839082,-150.0,0.00036682,2]
[314809373,1708561839091,-150.0,0.00036696,2]
[314809374,1708561839101,-5000.0,0.00036697,3]
[314809375,1708561839110,-267.0727173,0.00036698,2]
[314809376,1708561839121,-353.47221457,0.00036742,3]
[314809377,1708561839140,-337.0,0.00036742,2]
[314809378,1708561839153,-302.0,0.00036742,2]
[314809379,1708561839162,-2586.0,0.00036742,2]
[314809380,1708561839172,-317.722,0.00036742,2]
[314809381,1708561839181,-454.0,0.00036742,2]
[314809382,1708561839191,-7429.0,0.00036742,2]
[314809383,1708561839201,-1867.0,0.00036742,2]
[314809384,1708561839211,-42646.0,0.00036742,2]
[314809385,1708561839221,-2693.0,0.00036742,2]
[314809386,1708561839231,-8177.0,0.00036742,2]
[314809387,1708561839241,-4104.0,0.00036742,2]